[Event "Early-Titled-Tuesday-Blitz-October-24-2023"]
[Site "Chess.com"]
[Date "2023.10.24"]
[Round "4"]
[White "AlexOstrovskiy"]
[Black "Shivananda1964"]
[Result "0-1"]
[WhiteElo "2599"]
[BlackElo "2407"]
[TimeControl "180+1"]
[EndTime "8:38:40 PDT"]
[Termination "Shivananda1964 won by checkmate"]

1. e4 {[%clk 0:03:00.9]} 1... Nc6 {[%clk 0:02:59.8]} 2. Nc3 {[%clk 0:02:58.1]}
2... Nf6 {[%clk 0:02:56.8]} 3. Bc4 {[%clk 0:02:52.4]} 3... Nxe4 {[%clk
0:02:48.4]} 4. Qh5 {[%clk 0:02:22.7]} 4... Nd6 {[%clk 0:02:43.1]} 5. Bb3 {[%clk
0:02:18.6]} 5... e6 {[%clk 0:02:33.2]} 6. Nf3 {[%clk 0:02:15.3]} 6... g6 {[%clk
0:02:30.2]} 7. Qh3 {[%clk 0:02:08.3]} 7... Bg7 {[%clk 0:02:29.4]} 8. d3 {[%clk
0:02:03.6]} 8... Nf5 {[%clk 0:02:27.6]} 9. Bg5 {[%clk 0:02:00]} 9... f6 {[%clk
0:02:28]} 10. Bd2 {[%clk 0:01:59]} 10... Ncd4 {[%clk 0:02:19.1]} 11. O-O-O
{[%clk 0:01:42.7]} 11... O-O {[%clk 0:02:06.1]} 12. g4 {[%clk 0:01:38.5]} 12...
Nxb3+ {[%clk 0:01:46.8]} 13. axb3 {[%clk 0:01:39.4]} 13... Ne7 {[%clk
0:01:41.6]} 14. g5 {[%clk 0:01:37]} 14... f5 {[%clk 0:01:39.5]} 15. d4 {[%clk
0:01:33.7]} 15... b6 {[%clk 0:01:37.3]} 16. Rhe1 {[%clk 0:01:32.3]} 16... Bb7
{[%clk 0:01:37]} 17. Ne5 {[%clk 0:01:31.9]} 17... f4 {[%clk 0:00:54.8]} 18. Qg4
{[%clk 0:01:27.5]} 18... Nf5 {[%clk 0:00:40.8]} 19. Bxf4 {[%clk 0:01:25.5]}
19... d6 {[%clk 0:00:34]} 20. Nd3 {[%clk 0:01:18.6]} 20... Nxd4 {[%clk 0:00:31]}
21. Ne2 {[%clk 0:01:11.5]} 21... Bf3 {[%clk 0:00:29.3]} 22. Qh3 {[%clk
0:00:57.4]} 22... Bxe2 {[%clk 0:00:19.3]} 23. Rd2 {[%clk 0:00:32.3]} 23... Bxd3
{[%clk 0:00:16.1]} 24. Be3 {[%clk 0:00:29.4]} 24... Bf5 {[%clk 0:00:13.9]} 25.
Qg3 {[%clk 0:00:29]} 25... c5 {[%clk 0:00:14]} 26. h4 {[%clk 0:00:28.4]} 26...
Qd7 {[%clk 0:00:13.1]} 27. h5 {[%clk 0:00:28.4]} 27... Qc6 {[%clk 0:00:11]} 28.
h6 {[%clk 0:00:28.5]} 28... Be5 {[%clk 0:00:09.9]} 29. f4 {[%clk 0:00:22.9]}
29... Bh8 {[%clk 0:00:08.5]} 30. Rf1 {[%clk 0:00:19.8]} 30... b5 {[%clk
0:00:07.4]} 31. Bxd4 {[%clk 0:00:15.1]} 31... Bxd4 {[%clk 0:00:06.2]} 32. Rfd1
{[%clk 0:00:15.6]} 32... b4 {[%clk 0:00:05.4]} 33. c3 {[%clk 0:00:14.5]} 33...
bxc3 {[%clk 0:00:04.8]} 34. bxc3 {[%clk 0:00:15.4]} 34... Qe4 {[%clk 0:00:02.8]}
35. Kb2 {[%clk 0:00:14.8]} 35... Bh8 {[%clk 0:00:01.4]} 36. Re1 {[%clk
0:00:15.2]} 36... Qc6 {[%clk 0:00:01.4]} 37. Qe3 {[%clk 0:00:14.7]} 37... Rab8
{[%clk 0:00:01.7]} 38. Ra1 {[%clk 0:00:06.3]} 38... Qb6 {[%clk 0:00:02]} 39. Ra3
{[%clk 0:00:06.7]} 39... Rb7 {[%clk 0:00:02.5]} 40. Ka2 {[%clk 0:00:05.3]} 40...
Rfb8 {[%clk 0:00:02.9]} 41. Rb2 {[%clk 0:00:06]} 41... a5 {[%clk 0:00:02.9]} 42.
Ra4 {[%clk 0:00:02.7]} 42... c4 {[%clk 0:00:03.1]} 43. Qxb6 {[%clk 0:00:02.2]}
43... Rxb6 {[%clk 0:00:03]} 44. Rxc4 {[%clk 0:00:03.1]} 44... a4 {[%clk
0:00:03.3]} 45. Rxa4 {[%clk 0:00:03.3]} 45... Bxc3 {[%clk 0:00:03.4]} 46. Ra3
{[%clk 0:00:04.2]} 46... Bxb2 {[%clk 0:00:03.1]} 47. Kxb2 {[%clk 0:00:05.1]}
47... e5 {[%clk 0:00:03.7]} 48. fxe5 {[%clk 0:00:05.2]} 48... dxe5 {[%clk
0:00:04.2]} 49. Kc3 {[%clk 0:00:05.8]} 49... e4 {[%clk 0:00:04.6]} 50. Ra7
{[%clk 0:00:06]} 50... Rxb3+ {[%clk 0:00:04.9]} 51. Kd4 {[%clk 0:00:06.3]} 51...
R3b7 {[%clk 0:00:05.6]} 52. Ra6 {[%clk 0:00:06.5]} 52... Rd8+ {[%clk 0:00:05.7]}
53. Ke5 {[%clk 0:00:06.9]} 53... Rb5+ {[%clk 0:00:05.8]} 54. Kf6 {[%clk
0:00:06.8]} 54... Rb7 {[%clk 0:00:05.9]} 55. Ke5 {[%clk 0:00:06.4]} 55... e3
{[%clk 0:00:05.9]} 56. Ra2 {[%clk 0:00:05.6]} 56... Re8+ {[%clk 0:00:06.6]} 57.
Kf4 {[%clk 0:00:06.1]} 57... e2 {[%clk 0:00:06.9]} 58. Ra8 {[%clk 0:00:05.9]}
58... Rxa8 {[%clk 0:00:06.1]} 59. Ke5 {[%clk 0:00:05.9]} 59... e1=Q+ {[%clk
0:00:06.3]} 60. Kf6 {[%clk 0:00:06.8]} 60... Qe7# {[%clk 0:00:05.7]} 0-1

[Event "Early-Titled-Tuesday-Blitz-October-24-2023"]
[Site "Chess.com"]
[Date "2023.10.24"]
[Round "4"]
[White "zajka-molotok"]
[Black "IsuruAlahakoon"]
[Result "1-0"]
[WhiteElo "2552"]
[BlackElo "2337"]
[TimeControl "180+1"]
[EndTime "8:38:40 PDT"]
[Termination "zajka-molotok won on time"]

1. e4 {[%clk 0:03:00.9]} 1... d5 {[%clk 0:02:59.3]} 2. exd5 {[%clk 0:03:00.5]}
2... Qxd5 {[%clk 0:02:58.2]} 3. Nc3 {[%clk 0:03:00.7]} 3... Qa5 {[%clk
0:02:58.2]} 4. d4 {[%clk 0:02:59.3]} 4... Nf6 {[%clk 0:02:57.9]} 5. Nf3 {[%clk
0:02:56.6]} 5... Bg4 {[%clk 0:02:56.9]} 6. h3 {[%clk 0:02:55.5]} 6... Bh5 {[%clk
0:02:56.7]} 7. g4 {[%clk 0:02:54.5]} 7... Bg6 {[%clk 0:02:56.7]} 8. Ne5 {[%clk
0:02:54.6]} 8... e6 {[%clk 0:02:56.8]} 9. Bg2 {[%clk 0:02:49.2]} 9... c6 {[%clk
0:02:51.8]} 10. Bd2 {[%clk 0:02:32.7]} 10... Bb4 {[%clk 0:02:44.1]} 11. h4
{[%clk 0:02:29.4]} 11... Bxc3 {[%clk 0:02:28]} 12. Bxc3 {[%clk 0:02:28]} 12...
Qc7 {[%clk 0:02:28.5]} 13. Qe2 {[%clk 0:02:20.1]} 13... Nfd7 {[%clk 0:01:48.1]}
14. h5 {[%clk 0:02:12.1]} 14... Nxe5 {[%clk 0:00:53.2]} 15. dxe5 {[%clk
0:02:06.7]} 15... Nd7 {[%clk 0:00:45.7]} 16. hxg6 {[%clk 0:02:04.9]} 16... fxg6
{[%clk 0:00:46.6]} 17. O-O-O {[%clk 0:02:02.8]} 17... O-O-O {[%clk 0:00:46.2]}
18. f4 {[%clk 0:01:59.5]} 18... Nb6 {[%clk 0:00:43.7]} 19. Rxd8+ {[%clk
0:01:55.9]} 19... Qxd8 {[%clk 0:00:41.7]} 20. Ba5 {[%clk 0:01:50.6]} 20... Qd4
{[%clk 0:00:38.2]} 21. Bxb6 {[%clk 0:01:49.1]} 21... axb6 {[%clk 0:00:32.9]} 22.
Qd2 {[%clk 0:01:46.7]} 22... Qc4 {[%clk 0:00:27.9]} 23. b3 {[%clk 0:01:40.2]}
23... Qc5 {[%clk 0:00:23.7]} 24. Kb2 {[%clk 0:01:32]} 24... Rd8 {[%clk
0:00:20.5]} 25. Qc3 {[%clk 0:01:30.6]} 25... Qf2 {[%clk 0:00:19.1]} 26. Bxc6
{[%clk 0:01:27.8]} 26... bxc6 {[%clk 0:00:20]} 27. Qxc6+ {[%clk 0:01:27.4]}
27... Kb8 {[%clk 0:00:20.6]} 28. Rxh7 {[%clk 0:01:25.4]} 28... Qd4+ {[%clk
0:00:20]} 29. Qc3 {[%clk 0:01:23]} 29... Qxf4 {[%clk 0:00:18.7]} 30. Rxg7 {[%clk
0:01:21.9]} 30... Rc8 {[%clk 0:00:17]} 31. Qe1 {[%clk 0:01:17.3]} 31... Qd4+
{[%clk 0:00:16.2]} 32. Kb1 {[%clk 0:01:16.2]} 32... Qc5 {[%clk 0:00:13.8]} 33.
Qd1 {[%clk 0:01:00.9]} 33... Qxe5 {[%clk 0:00:12.3]} 34. Rd7 {[%clk 0:00:50.6]}
34... Qc3 {[%clk 0:00:10.5]} 35. Rd8 {[%clk 0:00:37.2]} 35... Qc7 {[%clk
0:00:07.8]} 36. Rxc8+ {[%clk 0:00:35.4]} 36... Kxc8 {[%clk 0:00:08.7]} 37. Qe2
{[%clk 0:00:34]} 37... Qd6 {[%clk 0:00:08.3]} 38. Qd3 {[%clk 0:00:31.6]} 38...
Qe5 {[%clk 0:00:07.1]} 39. Qa6+ {[%clk 0:00:22.4]} 39... Kc7 {[%clk 0:00:07]}
40. Qa7+ {[%clk 0:00:21.5]} 40... Kc6 {[%clk 0:00:06.8]} 41. Qa8+ {[%clk
0:00:21.1]} 41... Kc7 {[%clk 0:00:06.8]} 42. Qa7+ {[%clk 0:00:21.1]} 42... Kc6
{[%clk 0:00:07]} 43. Qa4+ {[%clk 0:00:21.6]} 43... Kc7 {[%clk 0:00:06.8]} 44.
Qc4+ {[%clk 0:00:20.7]} 44... Kb7 {[%clk 0:00:06.7]} 45. a4 {[%clk 0:00:20.7]}
45... Qe1+ {[%clk 0:00:06.3]} 46. Ka2 {[%clk 0:00:20.3]} 46... Qe5 {[%clk
0:00:06.8]} 47. Qd3 {[%clk 0:00:19.2]} 47... Qc5 {[%clk 0:00:05.3]} 48. Qxg6
{[%clk 0:00:18.5]} 48... Ka6 {[%clk 0:00:03.8]} 49. Qd3+ {[%clk 0:00:18.3]}
49... Ka7 {[%clk 0:00:01.7]} 50. Qe4 {[%clk 0:00:18.7]} 50... e5 {[%clk
0:00:01.6]} 51. g5 {[%clk 0:00:18.5]} 51... Qe7 {[%clk 0:00:01.5]} 52. g6 {[%clk
0:00:18.6]} 52... Qf6 {[%clk 0:00:01.1]} 53. Kb1 {[%clk 0:00:18]} 1-0

[Event "Early-Titled-Tuesday-Blitz-October-24-2023"]
[Site "Chess.com"]
[Date "2023.10.24"]
[Round "4"]
[White "Fh2411"]
[Black "carloseduar100"]
[Result "1-0"]
[WhiteElo "2512"]
[BlackElo "2322"]
[TimeControl "180+1"]
[EndTime "8:38:40 PDT"]
[Termination "Fh2411 won by checkmate"]

1. d4 {[%clk 0:03:00.9]} 1... d5 {[%clk 0:02:59]} 2. Nf3 {[%clk 0:02:54.2]} 2...
c6 {[%clk 0:02:58.8]} 3. Bf4 {[%clk 0:02:54.5]} 3... Bf5 {[%clk 0:02:58.2]} 4.
c4 {[%clk 0:02:52.7]} 4... e6 {[%clk 0:02:58.1]} 5. Nc3 {[%clk 0:02:53.3]} 5...
Nf6 {[%clk 0:02:58.1]} 6. e3 {[%clk 0:02:52]} 6... Bb4 {[%clk 0:02:57.5]} 7. Qb3
{[%clk 0:02:52.4]} 7... Qa5 {[%clk 0:02:54.3]} 8. a3 {[%clk 0:02:44.6]} 8...
Bxc3+ {[%clk 0:02:46.1]} 9. bxc3 {[%clk 0:02:44.6]} 9... Qb6 {[%clk 0:02:46.7]}
10. Qb4 {[%clk 0:02:40.6]} 10... dxc4 {[%clk 0:02:24.2]} 11. Bxc4 {[%clk
0:02:30.1]} 11... Nbd7 {[%clk 0:02:24.4]} 12. O-O {[%clk 0:02:21.3]} 12... a5
{[%clk 0:02:23.7]} 13. Qa4 {[%clk 0:01:59.7]} 13... Ne4 {[%clk 0:02:23]} 14.
Rac1 {[%clk 0:01:50.2]} 14... Qb2 {[%clk 0:02:18.4]} 15. Qb3 {[%clk 0:01:43.2]}
15... Qxb3 {[%clk 0:02:02.1]} 16. Bxb3 {[%clk 0:01:44.1]} 16... O-O {[%clk
0:01:58.3]} 17. h3 {[%clk 0:01:37]} 17... h6 {[%clk 0:01:57.3]} 18. Rfe1 {[%clk
0:01:27.1]} 18... c5 {[%clk 0:01:57.2]} 19. Ba4 {[%clk 0:01:19.9]} 19... Ndf6
{[%clk 0:01:53.4]} 20. c4 {[%clk 0:01:16.3]} 20... cxd4 {[%clk 0:01:52.6]} 21.
exd4 {[%clk 0:01:16]} 21... Rac8 {[%clk 0:01:46.4]} 22. Re2 {[%clk 0:01:08]}
22... Rfd8 {[%clk 0:01:40]} 23. Rb2 {[%clk 0:01:07.7]} 23... Nd6 {[%clk
0:01:12.2]} 24. c5 {[%clk 0:01:03.4]} 24... b5 {[%clk 0:00:58.4]} 25. Bxb5
{[%clk 0:00:58.3]} 25... Nxb5 {[%clk 0:00:58.3]} 26. Rxb5 {[%clk 0:00:59.2]}
26... Be4 {[%clk 0:00:53.9]} 27. Be3 {[%clk 0:00:57.9]} 27... Bxf3 {[%clk
0:00:42.9]} 28. gxf3 {[%clk 0:00:58.8]} 28... Ra8 {[%clk 0:00:43]} 29. c6 {[%clk
0:00:33.9]} 29... Nd5 {[%clk 0:00:43.2]} 30. Rcc5 {[%clk 0:00:30.4]} 30... Rdc8
{[%clk 0:00:42.6]} 31. Bd2 {[%clk 0:00:14.8]} 31... a4 {[%clk 0:00:39.2]} 32.
Ba5 {[%clk 0:00:15.4]} 32... Ra6 {[%clk 0:00:26.8]} 33. c7 {[%clk 0:00:14.8]}
33... Kh7 {[%clk 0:00:19.9]} 34. Rb8 {[%clk 0:00:10.6]} 34... Ne7 {[%clk
0:00:12.8]} 35. Rcb5 {[%clk 0:00:06.5]} 35... Rc6 {[%clk 0:00:11.7]} 36. Kg2
{[%clk 0:00:03]} 36... R8xc7 {[%clk 0:00:10.5]} 37. Bxc7 {[%clk 0:00:02.8]}
37... Rxc7 {[%clk 0:00:11.4]} 38. R5b7 {[%clk 0:00:03.7]} 38... Rxb7 {[%clk
0:00:11]} 39. Rxb7 {[%clk 0:00:04.6]} 39... Nd5 {[%clk 0:00:11.5]} 40. Rxf7
{[%clk 0:00:04.9]} 40... Nc3 {[%clk 0:00:10.4]} 41. Ra7 {[%clk 0:00:04.7]} 41...
Nb5 {[%clk 0:00:11.2]} 42. Rxa4 {[%clk 0:00:04.4]} 42... Kg6 {[%clk 0:00:11.7]}
43. Kg3 {[%clk 0:00:03]} 43... Kf6 {[%clk 0:00:11.8]} 44. Kf4 {[%clk 0:00:02.4]}
44... g5+ {[%clk 0:00:12.1]} 45. Ke3 {[%clk 0:00:02.9]} 45... Kf5 {[%clk
0:00:12]} 46. Ra5 {[%clk 0:00:03.3]} 46... e5 {[%clk 0:00:12.1]} 47. Rxb5 {[%clk
0:00:03.7]} 47... g4 {[%clk 0:00:12.8]} 48. Rxe5+ {[%clk 0:00:04.6]} 48... Kg6
{[%clk 0:00:13.3]} 49. hxg4 {[%clk 0:00:05.4]} 49... h5 {[%clk 0:00:13.7]} 50.
gxh5+ {[%clk 0:00:06.3]} 50... Kh6 {[%clk 0:00:14.2]} 51. a4 {[%clk 0:00:07.1]}
51... Kh7 {[%clk 0:00:14.4]} 52. a5 {[%clk 0:00:08]} 52... Kh6 {[%clk
0:00:15.3]} 53. a6 {[%clk 0:00:08.9]} 53... Kg7 {[%clk 0:00:15.6]} 54. a7 {[%clk
0:00:09.8]} 54... Kh6 {[%clk 0:00:16.5]} 55. a8=Q {[%clk 0:00:10.3]} 55... Kg7
{[%clk 0:00:17.4]} 56. Qc6 {[%clk 0:00:10.9]} 56... Kf8 {[%clk 0:00:17.5]} 57.
Rb5 {[%clk 0:00:11.8]} 57... Ke7 {[%clk 0:00:18]} 58. Rb7+ {[%clk 0:00:12.5]}
58... Kd8 {[%clk 0:00:18.4]} 59. Qd7# {[%clk 0:00:13.2]} 1-0

[Event "Early-Titled-Tuesday-Blitz-October-24-2023"]
[Site "Chess.com"]
[Date "2023.10.24"]
[Round "4"]
[White "GiorgianBarbosa"]
[Black "RobertoJBM"]
[Result "1/2-1/2"]
[WhiteElo "2411"]
[BlackElo "2778"]
[TimeControl "180+1"]
[EndTime "8:38:44 PDT"]
[Termination "Game drawn by repetition"]

1. c4 {[%clk 0:03:00.9]} 1... c6 {[%clk 0:02:58.8]} 2. d4 {[%clk 0:03:00.4]}
2... d5 {[%clk 0:02:58.8]} 3. cxd5 {[%clk 0:03:01.3]} 3... cxd5 {[%clk
0:02:58.8]} 4. Nc3 {[%clk 0:03:01.9]} 4... Nf6 {[%clk 0:02:58.9]} 5. Bf4 {[%clk
0:03:01.7]} 5... Qb6 {[%clk 0:02:58.2]} 6. Qd2 {[%clk 0:02:56.1]} 6... Nc6
{[%clk 0:02:57]} 7. e3 {[%clk 0:02:54.4]} 7... e6 {[%clk 0:02:55.7]} 8. Bd3
{[%clk 0:02:52.5]} 8... Be7 {[%clk 0:02:52.2]} 9. Nge2 {[%clk 0:02:50.8]} 9...
O-O {[%clk 0:02:52]} 10. h3 {[%clk 0:02:46]} 10... a6 {[%clk 0:02:49.4]} 11. O-O
{[%clk 0:02:46.2]} 11... Bd7 {[%clk 0:02:47.5]} 12. Rfc1 {[%clk 0:02:43.7]}
12... Rfc8 {[%clk 0:02:45]} 13. Rab1 {[%clk 0:00:58.6]} 13... Nb4 {[%clk
0:02:40.8]} 14. a3 {[%clk 0:00:53.5]} 14... Nxd3 {[%clk 0:02:40]} 15. Qxd3
{[%clk 0:00:54.4]} 15... Qd8 {[%clk 0:02:09.4]} 16. b4 {[%clk 0:00:47.2]} 16...
Ne8 {[%clk 0:01:59.8]} 17. Na2 {[%clk 0:00:41.9]} 17... Bb5 {[%clk 0:01:57.5]}
18. Qd2 {[%clk 0:00:41.6]} 18... Bc4 {[%clk 0:01:54.7]} 19. Nac3 {[%clk
0:00:38.6]} 19... Nd6 {[%clk 0:01:51.8]} 20. Bxd6 {[%clk 0:00:37.9]} 20... Bxd6
{[%clk 0:01:52.7]} 21. Na4 {[%clk 0:00:33.8]} 21... b6 {[%clk 0:01:45.3]} 22.
Nb2 {[%clk 0:00:32]} 22... b5 {[%clk 0:01:43.9]} 23. Nd3 {[%clk 0:00:31.5]}
23... Bxd3 {[%clk 0:01:41]} 24. Qxd3 {[%clk 0:00:31.2]} 24... Rc4 {[%clk
0:01:40.7]} 25. Rc3 {[%clk 0:00:20.9]} 25... a5 {[%clk 0:01:38]} 26. bxa5 {[%clk
0:00:15.9]} 26... Qxa5 {[%clk 0:01:35.8]} 27. Rcb3 {[%clk 0:00:15.2]} 27... g6
{[%clk 0:01:07.8]} 28. g3 {[%clk 0:00:15.1]} 28... Rac8 {[%clk 0:00:51.8]} 29.
Rxb5 {[%clk 0:00:12.4]} 29... Qxa3 {[%clk 0:00:51.3]} 30. Qxa3 {[%clk
0:00:12.1]} 30... Bxa3 {[%clk 0:00:52.2]} 31. Rb8 {[%clk 0:00:12.2]} 31... Kg7
{[%clk 0:00:47.7]} 32. Rxc8 {[%clk 0:00:11.8]} 32... Rxc8 {[%clk 0:00:48.6]} 33.
Nf4 {[%clk 0:00:12.1]} 33... Bd6 {[%clk 0:00:47.1]} 34. h4 {[%clk 0:00:11.8]}
34... Bxf4 {[%clk 0:00:45]} 35. gxf4 {[%clk 0:00:12.7]} 35... Rc7 {[%clk
0:00:42.2]} 36. Kg2 {[%clk 0:00:12.9]} 36... Kf6 {[%clk 0:00:42.7]} 37. Kf3
{[%clk 0:00:12.9]} 37... Kf5 {[%clk 0:00:42]} 38. h5 {[%clk 0:00:10.2]} 38...
gxh5 {[%clk 0:00:39.6]} 39. Rg1 {[%clk 0:00:10.6]} 39... f6 {[%clk 0:00:36]} 40.
Rg8 {[%clk 0:00:08.1]} 40... Rc1 {[%clk 0:00:27.2]} 41. Rg7 {[%clk 0:00:07.4]}
41... h6 {[%clk 0:00:22.8]} 42. Rg3 {[%clk 0:00:05.7]} 42... Rh1 {[%clk
0:00:20]} 43. Kg2 {[%clk 0:00:05.9]} 43... Rh4 {[%clk 0:00:17.1]} 44. Kf3 {[%clk
0:00:05.3]} 44... Rg4 {[%clk 0:00:15.6]} 45. Rh3 {[%clk 0:00:05.6]} 45... h4
{[%clk 0:00:15.1]} 46. Rh1 {[%clk 0:00:06]} 46... h5 {[%clk 0:00:14.1]} 47. Rh2
{[%clk 0:00:06.7]} 47... e5 {[%clk 0:00:11.2]} 48. fxe5 {[%clk 0:00:06]} 48...
fxe5 {[%clk 0:00:12.1]} 49. dxe5 {[%clk 0:00:05.9]} 49... Kxe5 {[%clk
0:00:12.8]} 50. Rh1 {[%clk 0:00:05.8]} 50... d4 {[%clk 0:00:10.4]} 51. exd4+
{[%clk 0:00:05.7]} 51... Rxd4 {[%clk 0:00:09.3]} 52. Re1+ {[%clk 0:00:06.3]}
52... Kf5 {[%clk 0:00:09.7]} 53. Rb1 {[%clk 0:00:06.1]} 53... Rg4 {[%clk
0:00:07.6]} 54. Rb5+ {[%clk 0:00:05.4]} 54... Kg6 {[%clk 0:00:07.5]} 55. Rb6+
{[%clk 0:00:06]} 55... Kg7 {[%clk 0:00:07.7]} 56. Rb7+ {[%clk 0:00:06.4]} 56...
Kf6 {[%clk 0:00:07.9]} 57. Rb6+ {[%clk 0:00:06.7]} 57... Kg5 {[%clk 0:00:08.3]}
58. Rb5+ {[%clk 0:00:07.2]} 58... Kg6 {[%clk 0:00:08.8]} 59. Rb6+ {[%clk
0:00:07.9]} 59... Kh7 {[%clk 0:00:08.6]} 60. Rb7+ {[%clk 0:00:08.2]} 60... Kh6
{[%clk 0:00:09.3]} 61. Rb6+ {[%clk 0:00:08.5]} 61... Kg5 {[%clk 0:00:09.9]} 62.
Rb5+ {[%clk 0:00:08.8]} 62... Kg6 {[%clk 0:00:10.4]} 1/2-1/2

[Event "Early-Titled-Tuesday-Blitz-October-24-2023"]
[Site "Chess.com"]
[Date "2023.10.24"]
[Round "4"]
[White "SnekkerAndersen"]
[Black "Szparu"]
[Result "0-1"]
[WhiteElo "2513"]
[BlackElo "2703"]
[TimeControl "180+1"]
[EndTime "8:38:47 PDT"]
[Termination "Szparu won by checkmate"]

1. d4 {[%clk 0:02:58.3]} 1... Nf6 {[%clk 0:02:59.7]} 2. Bf4 {[%clk 0:02:46.8]}
2... d5 {[%clk 0:02:55.8]} 3. e3 {[%clk 0:02:43.4]} 3... e6 {[%clk 0:02:54.7]}
4. Nf3 {[%clk 0:02:37.1]} 4... c5 {[%clk 0:02:54.6]} 5. Nbd2 {[%clk 0:02:36.7]}
5... Nc6 {[%clk 0:02:54.1]} 6. c3 {[%clk 0:02:36.2]} 6... cxd4 {[%clk
0:02:54.3]} 7. exd4 {[%clk 0:02:36.7]} 7... Nh5 {[%clk 0:02:54.3]} 8. Be3 {[%clk
0:02:37]} 8... Bd6 {[%clk 0:02:54]} 9. Bd3 {[%clk 0:02:37.6]} 9... Nf4 {[%clk
0:02:53.3]} 10. Bxf4 {[%clk 0:02:37.3]} 10... Bxf4 {[%clk 0:02:54.2]} 11. O-O
{[%clk 0:02:38.2]} 11... O-O {[%clk 0:02:52.8]} 12. Re1 {[%clk 0:02:37.7]} 12...
Bd7 {[%clk 0:02:50.5]} 13. Nb3 {[%clk 0:02:31]} 13... b6 {[%clk 0:02:38.4]} 14.
a3 {[%clk 0:02:31.2]} 14... Rc8 {[%clk 0:02:32.7]} 15. a4 {[%clk 0:02:30.9]}
15... Bd6 {[%clk 0:02:16.4]} 16. Qe2 {[%clk 0:02:14.6]} 16... Qc7 {[%clk
0:02:08.2]} 17. Bb5 {[%clk 0:02:09.7]} 17... Rfe8 {[%clk 0:02:04.1]} 18. a5
{[%clk 0:02:02.3]} 18... Rb8 {[%clk 0:01:52.8]} 19. axb6 {[%clk 0:01:58.2]}
19... Qxb6 {[%clk 0:01:50.5]} 20. Bxc6 {[%clk 0:01:39]} 20... Qxc6 {[%clk
0:01:36.4]} 21. Nc5 {[%clk 0:01:30.9]} 21... Bxc5 {[%clk 0:01:15.6]} 22. Ne5
{[%clk 0:01:28.6]} 22... Qc7 {[%clk 0:01:15.9]} 23. Nxd7 {[%clk 0:01:28.5]}
23... Qxd7 {[%clk 0:01:07.8]} 24. dxc5 {[%clk 0:01:28.5]} 24... Rb3 {[%clk
0:00:55.1]} 25. Qa6 {[%clk 0:01:07.5]} 25... Rxb2 {[%clk 0:00:42.4]} 26. Reb1
{[%clk 0:01:04]} 26... Reb8 {[%clk 0:00:29.7]} 27. Rxb2 {[%clk 0:01:03]} 27...
Rxb2 {[%clk 0:00:30.6]} 28. h3 {[%clk 0:00:59.4]} 28... h6 {[%clk 0:00:22.7]}
29. Qd6 {[%clk 0:00:52.2]} 29... Rb7 {[%clk 0:00:10]} 30. Qe5 {[%clk 0:00:39.5]}
30... Rc7 {[%clk 0:00:10.1]} 31. Ra5 {[%clk 0:00:30.5]} 31... f6 {[%clk
0:00:09.8]} 32. Qh5 {[%clk 0:00:29.4]} 32... Qe7 {[%clk 0:00:06.6]} 33. h4
{[%clk 0:00:20]} 33... e5 {[%clk 0:00:05.2]} 34. c6 {[%clk 0:00:09.6]} 34...
Rxc6 {[%clk 0:00:03.8]} 35. Rxd5 {[%clk 0:00:10.2]} 35... Rxc3 {[%clk
0:00:03.4]} 36. Qf5 {[%clk 0:00:08.1]} 36... Rc1+ {[%clk 0:00:03.4]} 37. Kh2
{[%clk 0:00:08.1]} 37... Rc7 {[%clk 0:00:04]} 38. Qd3 {[%clk 0:00:07.4]} 38...
Rc8 {[%clk 0:00:02.8]} 39. Rd7 {[%clk 0:00:04.8]} 39... Qe6 {[%clk 0:00:03]} 40.
Rxa7 {[%clk 0:00:04.7]} 40... Qg4 {[%clk 0:00:02.6]} 41. g3 {[%clk 0:00:04.2]}
41... Rf8 {[%clk 0:00:02.1]} 42. Qd5+ {[%clk 0:00:04.3]} 42... Kh8 {[%clk
0:00:02.5]} 43. Qb7 {[%clk 0:00:03.9]} 43... Rg8 {[%clk 0:00:02.9]} 44. Kg2
{[%clk 0:00:04.3]} 44... Qf5 {[%clk 0:00:03.4]} 45. Ra4 {[%clk 0:00:04.5]} 45...
h5 {[%clk 0:00:03.7]} 46. Qd5 {[%clk 0:00:04.2]} 46... Qg6 {[%clk 0:00:04]} 47.
Re4 {[%clk 0:00:04.4]} 47... Rc8 {[%clk 0:00:03.8]} 48. Qd3 {[%clk 0:00:04.6]}
48... Kh7 {[%clk 0:00:03.5]} 49. Qe2 {[%clk 0:00:04.5]} 49... Rb8 {[%clk
0:00:03.8]} 50. Re3 {[%clk 0:00:05.1]} 50... Rb4 {[%clk 0:00:03.9]} 51. Qd2
{[%clk 0:00:04.2]} 51... Rxh4 {[%clk 0:00:04.1]} 52. Qe2 {[%clk 0:00:03.2]}
52... Rg4 {[%clk 0:00:04.3]} 53. Kh3 {[%clk 0:00:02.3]} 53... Rg5 {[%clk
0:00:04.5]} 54. Re4 {[%clk 0:00:02.6]} 54... Qf5+ {[%clk 0:00:03]} 55. Kg2
{[%clk 0:00:03.2]} 55... Rg4 {[%clk 0:00:03.3]} 56. Re3 {[%clk 0:00:03.8]} 56...
h4 {[%clk 0:00:03.3]} 57. Kh3 {[%clk 0:00:04.4]} 57... Rxg3+ {[%clk 0:00:02.8]}
58. Kxh4 {[%clk 0:00:03.7]} 58... Qg5# {[%clk 0:00:03.3]} 0-1